fUSD/lending_fUSD_20260106
["ID","MTS","AMOUNT","RATE_DAILY","PERIOD"]
[400496100,1767666638592,-150.0,0.0001674,2]
[400496101,1767666638602,-7051.89686609,0.00016748,2]
[400496102,1767666638612,-1000.0,0.00016773,2]
[400496103,1767666638621,-150.0,0.00016776,2]
[400496104,1767666638631,-500.0,0.00016789,2]
[400496105,1767666638640,-150.0,0.00016812,2]
[400496106,1767666638650,-2545.9492,0.00016822,2]
[400496107,1767666638659,-150.0,0.00016848,2]
[400496108,1767666638668,-150.0,0.00016884,2]
[400496109,1767666638677,-7051.89686609,0.00016892,2]
[400496110,1767666638687,-150.0,0.0001692,2]
[400496111,1767666638696,-151.0,0.00016933,2]
[400496112,1767666638706,-151.0,0.00016933,2]
[400496113,1767666638716,-151.0,0.00016933,2]
[400496114,1767666638726,-151.0,0.00016933,2]
[400496115,1767666638736,-151.0,0.00016934,2]
[400496116,1767666638745,-151.0,0.00016934,2]
[400496117,1767666638754,-151.0,0.00016934,2]
[400496118,1767666638766,-199.19,0.00016935,2]
[400496119,1767666638775,-431.26,0.00016954,2]
[400496120,1767666638786,-150.0,0.00016956,2]
[400496121,1767666638799,-500.0,0.00016963,2]
[400496122,1767666638808,-151.0,0.00016983,2]
[400496123,1767666638818,-151.0,0.00016983,2]
[400496124,1767666638828,-150.0,0.00016992,2]
[400496125,1767666638839,-150.0,0.00017028,2]
[400496126,1767666638848,-7051.89686609,0.00017036,2]
[400496127,1767666638858,-163.0,0.0001704,2]
[400496128,1767666638869,-150.0,0.00017064,2]
[400496129,1767666638879,-150.0,0.000171,2]
[400496130,1767666638888,-9462.13463518,0.00017108,2]
[400496131,1767666638898,-150.0,0.00017136,2]
[400496132,1767666638908,-151.69,0.00017143,2]
[400496133,1767666638918,-598.0,0.00017171,2]
[400496134,1767666638928,-150.0,0.00017172,2]
[400496135,1767666638938,-7051.89686609,0.0001718,2]
[400496136,1767666638947,-9462.13463517,0.00017196,2]
[400496137,1767666638957,-150.0,0.00017208,2]
[400496138,1767666638966,-431.26,0.00017228,2]
[400496139,1767666638975,-500.0,0.00017237,2]
[400496140,1767666638986,-150.0,0.00017244,2]
[400496141,1767666638996,-150.0,0.0001728,2]
[400496142,1767666639007,-9462.13463517,0.00017284,2]
[400496143,1767666639017,-645.10689022,0.00017304,2]
[400496144,1767666639026,-150.0,0.00017316,2]
[400496145,1767666639035,-7051.89686609,0.00017324,2]
[400496146,1767666639044,-150.0,0.00017352,2]
[400496147,1767666639053,-598.0,0.00017355,2]
[400496148,1767666639063,-9462.13463517,0.00017372,2]
[400496149,1767666639073,-150.0,0.00017388,2]
[400496150,1767666639083,-150.0,0.00017424,2]
[400496151,1767666639092,-598.0,0.00017435,2]
[400496152,1767666639101,-150.0,0.0001746,2]
[400496153,1767666639111,-9462.13463517,0.0001746,2]
[400496154,1767666639121,-7051.89686609,0.00017468,2]
[400496155,1767666639130,-200.0,0.00017469,2]
[400496156,1767666639139,-2307.0,0.00017481,2]
[400496157,1767666639149,-150.0,0.00017496,2]
[400496158,1767666639161,-431.26,0.00017502,2]
[400496159,1767666639170,-210.91209289,0.00017511,2]
[400496160,1767666639179,-150.0,0.00017532,2]
[400496161,1767666639188,-9462.13463517,0.00017548,2]
[400496162,1767666639199,-150.0,0.00017568,2]
[400496163,1767666639208,-256.50634122,0.00017572,2]
[400496164,1767666639219,-293.56367081,0.00017572,2]
[400496165,1767666639229,-255.19351802,0.00017572,2]
[400496166,1767666639240,-500.0,0.00017572,2]
[400496167,1767666639250,-250.92999657,0.00017572,2]
[400496168,1767666639261,-500.0,0.00017573,2]
[400496169,1767666639271,-500.0,0.00017573,2]
[400496170,1767666639282,-350.48753114,0.00017573,2]
[400496171,1767666639292,-500.0,0.00017573,2]
[400496172,1767666639302,-503.52117386,0.00017573,2]
[400496173,1767666639311,-500.0,0.00017573,2]
[400496174,1767666639322,-150.0,0.00017604,2]
[400496175,1767666639332,-7051.89686609,0.00017612,2]
[400496176,1767666639342,-598.0,0.00017625,2]
[400496177,1767666639351,-9462.13463517,0.00017636,2]
[400496178,1767666639360,-150.0,0.0001764,2]
[400496179,1767666639369,-5425.18816308,0.0001764,2]
[400496180,1767666639379,-747.0,0.00017653,2]
[400496181,1767666639388,-1003.6548,0.00017656,2]
[400496182,1767666639398,-150.0,0.00017676,2]
[400496183,1767666639407,-4555.0777368,0.000177,2]
[400496184,1767666639417,-150.0,0.00017712,2]
[400496185,1767666639426,-935.0,0.00017714,2]
[400496186,1767666639436,-617.56564548,0.00017716,2]
[400496187,1767666639445,-598.0,0.00017716,2]
[400496188,1767666639455,-9462.13463517,0.00017724,2]
[400496189,1767666639465,-300.0,0.00017728,2]
[400496190,1767666639474,-300.0,0.0001774,2]
[400496191,1767666639483,-300.0,0.00017747,2]
[400496193,1767666639492,-150.0,0.00017748,2]
[400496195,1767666639502,-300.0,0.00017749,2]
[400496197,1767666639511,-300.0,0.00017753,2]
[400496199,1767666639520,-300.0,0.00017754,2]
[400496200,1767666639530,-7051.89686609,0.00017756,2]
[400496201,1767666639539,-300.0,0.00017761,2]
[400496202,1767666639547,-300.0,0.00017762,2]
[400496203,1767666639556,-300.0,0.00017762,2]
[400496204,1767666639565,-300.0,0.00017763,2]
[400496205,1767666639575,-300.0,0.00017764,2]
[400496206,1767666639583,-300.0,0.00017764,2]
[400496207,1767666639593,-300.0,0.00017765,2]
[400496208,1767666639602,-300.0,0.00017767,2]
[400496209,1767666639612,-300.0,0.00017767,2]
[400496210,1767666639622,-300.0,0.00017771,2]
[400496211,1767666639632,-431.2782291,0.00017776,2]
[400496212,1767666639641,-300.0,0.00017778,2]
[400496213,1767666639650,-300.0,0.00017782,2]
[400496214,1767666639659,-150.0,0.00017783,2]
[400496215,1767666639669,-150.0,0.00017784,2]
[400496216,1767666639678,-300.0,0.00017785,2]
[400496217,1767666639687,-300.0,0.00017786,2]
[400496218,1767666639697,-300.0,0.00017787,2]
[400496219,1767666639706,-300.0,0.00017787,2]
[400496220,1767666639715,-300.0,0.00017788,2]
[400496221,1767666639724,-300.0,0.00017791,2]
[400496222,1767666639734,-165.70481798,0.00017793,2]
[400496223,1767666639743,-300.0,0.00017796,2]
[400496224,1767666639752,-300.0,0.00017797,2]
[400496225,1767666639761,-300.0,0.00017799,2]
[400496226,1767666639771,-572.48419667,0.000178,2]
[400496227,1767666639780,-300.0,0.00017801,2]
[400496228,1767666639792,-300.0,0.00017804,2]
[400496229,1767666639804,-300.0,0.00017809,2]
[400496230,1767666639813,-9462.13463517,0.00017812,2]
[400496231,1767666639823,-300.0,0.00017816,2]
[400496232,1767666639835,-300.0,0.00017817,2]
[400496233,1767666639844,-150.0,0.0001782,2]
[400496234,1767666639854,-300.0,0.00017824,2]
[400496235,1767666639863,-300.0,0.00017827,2]
[400496236,1767666639874,-300.0,0.00017829,2]
[400496237,1767666639883,-749.4662188,0.0001783,2]
[400496238,1767666639892,-300.0,0.00017831,2]
[400496239,1767666639902,-300.0,0.00017838,2]
[400496240,1767666639911,-300.0,0.00017841,2]
[400496241,1767666639920,-300.0,0.00017845,2]
[400496242,1767666639929,-300.0,0.00017846,2]
[400496243,1767666639939,-300.0,0.00017848,2]
[400496244,1767666639948,-300.0,0.0001785,2]
[400496245,1767666639957,-150.0,0.00017856,2]
[400496246,1767666639967,-300.0,0.00017856,2]
[400496247,1767666639976,-200.0,0.00017856,2]
[400496248,1767666639985,-300.0,0.00017867,2]
[400496249,1767666639994,-152.33232489,0.00017875,2]
[400496250,1767666640004,-300.0,0.00017878,2]
[400496251,1767666640012,-300.0,0.00017887,2]
[400496252,1767666640021,-300.0,0.00017887,2]
[400496253,1767666640031,-150.0,0.00017892,2]
[400496254,1767666640040,-300.0,0.00017893,2]
[400496255,1767666640049,-300.0,0.00017895,2]
[400496256,1767666640058,-300.0,0.00017898,2]
[400496257,1767666640068,-300.0,0.00017898,2]
[400496259,1767666640078,-300.0,0.00017898,2]
[400496261,1767666640087,-300.0,0.00017899,2]
[400496262,1767666640096,-7051.89686609,0.000179,2]
[400496263,1767666640105,-609.89470962,0.000179,2]
[400496264,1767666640114,-9462.13463517,0.000179,2]
[400496265,1767666640123,-183.25632108,0.000179,2]
[400496266,1767666640132,-918.32931215,0.000179,2]
[400496267,1767666640141,-1157.43050102,0.000179,2]
[400496268,1767666640150,-298.31721101,0.000179,2]
[400496269,1767666640159,-300.0,0.00017906,2]
[400496270,1767666640168,-300.0,0.00017909,2]
[400496271,1767666640177,-1219.0,0.00017912,2]
[400496272,1767666640186,-300.0,0.00017912,2]
[400496273,1767666640196,-300.0,0.00017912,2]
[400496274,1767666640205,-300.0,0.00017915,2]
[400496275,1767666640214,-500.0,0.00017919,2]
[400496276,1767666640224,-161043.11858925,0.0001792,2]
[400496277,1767666640233,-300.0,0.00017925,2]
[400496278,1767666640242,-747.0,0.00017926,2]
[400496279,1767666640252,-150.0,0.00017928,2]
[400496280,1767666640261,-300.0,0.00017932,2]
[400496281,1767666640270,-300.0,0.00017936,2]
[400496282,1767666640280,-150.0,0.00017937,2]
[400496283,1767666640289,-300.0,0.00017937,2]
[400496284,1767666640301,-300.0,0.00017941,2]
[400496285,1767666640311,-747.0,0.00017942,2]
[400496286,1767666640320,-300.0,0.00017943,2]
[400496287,1767666640329,-300.0,0.00017944,2]
[400496288,1767666640338,-300.0,0.00017946,2]
[400496289,1767666640348,-300.0,0.00017947,2]
[400496290,1767666640358,-300.0,0.00017947,2]
[400496291,1767666640368,-300.0,0.00017949,2]
[400496293,1767666640377,-300.0,0.00017949,2]
[400496295,1767666640387,-300.0,0.0001795,2]
[400496297,1767666640396,-300.0,0.00017951,2]
[400496298,1767666640405,-300.0,0.00017951,2]
[400496299,1767666640415,-300.0,0.00017958,2]
[400496300,1767666640424,-300.0,0.00017961,2]
[400496301,1767666640434,-150.0,0.00017964,2]
[400496302,1767666640443,-300.0,0.00017964,2]
[400496303,1767666640453,-300.0,0.00017965,2]
[400496304,1767666640462,-300.0,0.00017967,2]
[400496305,1767666640472,-770.82279925,0.0001797,2]
[400496306,1767666640481,-300.0,0.00017971,2]
[400496307,1767666640490,-504.3199228,0.00017973,2]
[400496308,1767666640500,-500.0,0.00017973,2]
[400496309,1767666640510,-150.0,0.00017973,2]
[400496310,1767666640519,-150.0,0.00017973,2]
[400496311,1767666640528,-300.0,0.00017974,2]
[400496312,1767666640537,-300.0,0.00017976,2]
[400496313,1767666640546,-300.0,0.00017978,2]
[400496314,1767666640555,-300.0,0.00017979,2]
[400496315,1767666640565,-300.0,0.0001798,2]
[400496316,1767666640574,-300.0,0.00017982,2]
[400496317,1767666640583,-152.38329665,0.00017982,2]
[400496318,1767666640592,-300.0,0.00017984,2]
[400496319,1767666640601,-300.0,0.00017984,2]
[400496320,1767666640610,-300.0,0.00017986,2]
[400496321,1767666640619,-300.0,0.00017986,2]
[400496322,1767666640628,-300.0,0.00017988,2]
[400496323,1767666640637,-300.0,0.0001799,2]
[400496324,1767666640646,-600.48752458,0.0001799,2]
[400496325,1767666640655,-600.48752458,0.0001799,2]
[400496326,1767666640664,-600.48752458,0.0001799,2]
[400496327,1767666640673,-300.0,0.00017993,2]
[400496328,1767666640687,-300.0,0.00017994,2]
[400496329,1767666640696,-300.0,0.00017994,2]
[400496330,1767666640705,-155.08870728,0.00017997,2]
[400496331,1767666640714,-300.0,0.00017998,2]
[400496332,1767666640723,-323.23631266,0.00017999,2]
[400496333,1767666640734,-500.0,0.00017999,2]
[400496334,1767666640745,-500.0,0.00017999,2]
[400496335,1767666640755,-500.0,0.00017999,2]
[400496336,1767666640765,-500.0,0.00017999,2]
[400496337,1767666640774,-500.0,0.00017999,2]
[400496338,1767666640784,-500.0,0.00017999,2]
[400496339,1767666640796,-159.63267947,0.00017999,2]
[400496340,1767666640806,-259.81989931,0.00018,2]
[400496341,1767666640816,-1375043.53543788,0.00018,2]
[400496342,1767666641021,-2167.29775329,0.00018,2]
[400496343,1767666641033,-595.46680322,0.00018,2]
[400496344,1767666641045,-1266.01117204,0.00018,2]
[400496345,1767666641059,-4030.00360946,0.00018,2]
[400496346,1767666641070,-234944.07829204,0.00018,2]
[400496347,1767666641080,-781.31688968,0.00018,2]
[400496348,1767666641384,-958.1661177,0.00018,2]
[400496349,1767666641396,-11902.62865,0.00018,2]
[400496350,1767666641453,-15941.23605073,0.00018,2]
[400496351,1767666641464,-1310.00023,0.00018,2]
[400496352,1767666641503,-968.09974342,0.00018,2]
[400496353,1767666641515,-2798.57594812,0.00018,2]
[400496365,1767666643223,-881.0,0.000171,2]
[400496366,1767666643292,-19537.91868892,0.000171,2]
[400496367,1767666643302,-1315.59904404,0.00018,2]
[400496368,1767666644125,-6587.776033,0.00018,2]
[400496401,1767666645517,-48626.4191349,0.00018,2]
[400496402,1767666645563,-255.10665456,0.00018,2]
[400496403,1767666645619,-500.0,0.00018,2]
[400496404,1767666645676,-5103.0,0.00018,2]
[400496405,1767666645688,-444.81816065,0.00018,2]
[400496408,1767666667337,164.721833,0.0001642,2]
[400496430,1767666690525,169.97067241,0.00032876,120]
[400496431,1767666692862,1517.272,0.00016174,2]
[400496432,1767666727761,168.37238752,0.00016479,2]
[400496438,1767666879201,617.56564548,0.00016438,2]
[400496439,1767666897023,648.72371914,0.00032876,120]
[400496443,1767666996479,564.14,0.00013699,2]
[400496444,1767667001659,9462.13463518,0.00016438,2]
[400496445,1767667037354,500.0,0.00032876,120]
[400496446,1767667037674,500.0,0.00032876,120]
[400496447,1767667037878,1000.0,0.00016197,2]
[400496448,1767667037987,500.0,0.00032876,120]
[400496449,1767667038335,500.0,0.00032876,120]
[400496450,1767667038671,187.53005761,0.00032876,120]
[400496452,1767667094975,5641.51749289,0.00016438,2]
[400496455,1767667159235,540.36993976,0.00016438,2]
[400496457,1767667205283,289.0,0.00016501,2]
[400496461,1767667284579,150.0,0.00016165,2]
[400496462,1767667284798,56838.7945,0.00016404,2]
[400496465,1767667293067,1213.817,0.00016174,2]
[400496466,1767667319239,7532.78,0.00016165,2]
[400496472,1767667439719,472.82369729,0.00016438,2]
[400496475,1767667481179,5077.36574361,0.00016438,2]
[400496476,1767667511856,8515.92117168,0.00016438,2]
[400496478,1767667568166,500.0,0.00032876,120]
[400496479,1767667568432,500.0,0.00032876,120]
[400496480,1767667568739,500.0,0.00032876,120]
[400496481,1767667569178,500.0,0.00032876,120]
[400496482,1767667569273,500.0,0.00032876,120]
[400496483,1767667569463,500.0,0.00032876,120]
[400496484,1767667569698,300.19729162,0.00032876,120]
[400496485,1767667575173,150.0,0.000162,2]
[400496486,1767667575220,150.0,0.00016258,2]
[400496487,1767667575292,150.0,0.00016316,2]
[400496488,1767667575355,150.0,0.00016374,2]
[400496489,1767667575431,150.0,0.00016432,2]
[400496490,1767667575511,150.0,0.0001649,2]
[400496493,1767667594020,1562.3,0.00016073,2]
[400496494,1767667610644,394.8,0.00016073,2]
[400496495,1767667642124,-151.0,0.00016501,2]
[400496496,1767667642145,-250.0,0.00016501,2]
[400496497,1767667642166,-300.0,0.00016502,2]
[400496498,1767667642187,-337.80372819,0.00016502,2]
[400496500,1767667664899,1948.63,0.000161,2]
[400496501,1767667669590,181.04,8.048e-05,2]
[400496502,1767667669814,181.04,0.00010731,2]
[400496503,1767667670021,181.04,0.00013414,2]
[400496504,1767667670267,181.04,0.00016097,2]
[400496505,1767667676460,166.66,0.00015292,2]
[400496506,1767667676655,166.66,0.00015614,2]
[400496507,1767667676879,166.66,0.00015936,2]
[400496508,1767667677086,166.66,0.00016258,2]
[400496514,1767667792480,158.04,0.00016077,2]
[400496515,1767667813214,592583.1589,0.00016404,2]
[400496519,1767667831611,-289.0,0.00016502,2]
[400496520,1767667831621,-250.0,0.00016502,2]
[400496521,1767667831632,-500.0,0.00016503,2]
[400496522,1767667831641,-204.28110856,0.00016503,2]
[400496523,1767667831650,-500.0,0.00016503,2]
[400496524,1767667831661,-500.0,0.00016503,2]
[400496525,1767667831672,-696.28451537,0.00016511,2]
[400496526,1767667831683,-503.71548463,0.00016511,2]
[400496527,1767667831693,-254.57602209,0.00016512,2]
[400496528,1767667831703,-150.0,0.00016548,2]
[400496529,1767667831713,-166.66,0.00016564,2]
[400496530,1767667831723,-166.66,0.0001658,2]
[400496531,1767667831733,-300.0,0.00016598,2]
[400496532,1767667831742,-550.0,0.00016599,2]
[400496533,1767667831752,-1597.38211781,0.000166,2]
[400496534,1767667831764,-2548.73865149,0.000166,2]
[400496535,1767667831775,-604.02782766,0.000166,2]
[400496536,1767667831787,-3153.54549759,0.000166,2]
[400496537,1767667831800,-612.2270771,0.000166,2]
[400496538,1767667831809,-150.0,0.00016606,2]
[400496539,1767667831819,-150.0,0.00016665,2]
[400496540,1767667831828,-67.08456144,0.00016689,2]
[400496541,1767667831843,-694.14625423,0.00016689,2]
[400496542,1767667831855,-815.19116253,0.00016689,2]
[400496543,1767667831864,-1354.94353929,0.00016689,2]
[400496544,1767667831910,-942.35971386,0.00016689,2]
[400496545,1767667831921,-529.67461947,0.00016689,2]
[400496546,1767667831932,-536.05188292,0.00016689,2]
[400496547,1767667831944,-2151.7138018,0.00016689,2]
[400496548,1767667831999,-4485.24644266,0.00016689,2]
[400496549,1767667832010,-1962.28419495,0.00016689,2]
[400496550,1767667832022,-144.09580505,0.00016689,2]
[400496551,1767667832032,-150.99,0.00016689,2]
[400496552,1767667832042,-150.99,0.00016689,2]
[400496553,1767667832052,-500.58,0.00016689,2]
[400496554,1767667832063,-1011.7683665,0.00016689,2]
[400496555,1767667832093,-397.84647269,0.00016689,2]
[400496556,1767667832105,-1680.66735613,0.00016689,2]
[400496557,1767667832116,-977.95038533,0.00016689,2]
[400496558,1767667832127,-1023.31953828,0.00016689,2]
[400496559,1767667832138,-278.86788107,0.00016689,2]
[400496560,1767667832147,-1237.61649972,0.00016689,2]
[400496561,1767667832158,-387.11639996,0.00016689,2]
[400496562,1767667832168,-1603.75891355,0.00016689,2]
[400496563,1767667832179,-877.67818677,0.00016689,2]
[400496564,1767667832189,-150.0,0.00016723,2]
[400496565,1767667832199,-665.95586678,0.00016763,2]
[400496566,1767667832210,-297.04785907,0.00016763,2]
[400496569,1767667837679,-7552.9174458,0.00016763,2]
[400496570,1767667837689,-150.0,0.00016781,2]
[400496571,1767667837698,-323.7,0.00016787,2]
[400496572,1767667837708,-1000.0,0.00016804,2]
[400496573,1767667837719,-345.01,0.00016838,2]
[400496574,1767667837728,-500.0,0.00016838,2]
[400496575,1767667837738,-304.93162498,0.00016838,2]
[400496576,1767667837747,-200.0,0.00016838,2]
[400496577,1767667837756,-207.4,0.00016838,2]
[400496578,1767667837766,-215.0738,0.00016838,2]
[400496579,1767667837775,-223.0315306,0.00016838,2]
[400496580,1767667837785,-231.28369723,0.00016838,2]
[400496581,1767667837794,-239.84119403,0.00016838,2]
[400496582,1767667837803,-500.0,0.00016838,2]
[400496583,1767667837812,-500.0,0.00016838,2]
[400496584,1767667837822,-248.71531821,0.00016838,2]
[400496585,1767667837832,-636.98143003,0.00016838,2]
[400496586,1767667837841,-257.91778498,0.00016838,2]
[400496587,1767667837852,-267.46074303,0.00016838,2]
[400496588,1767667837861,-301.18926841,0.00016838,2]
[400496589,1767667837871,-151.0,0.00016838,2]
[400496590,1767667837882,-156.587,0.00016838,2]
[400496591,1767667837894,-165.95689703,0.00016838,2]
[400496592,1767667837905,-150.0,0.00016839,2]
[400496593,1767667837915,-8001.82,0.00016852,2]
[400496594,1767667837929,-150.0,0.00016897,2]
[400496595,1767667837938,-166.66,0.00016902,2]
[400496596,1767667837947,-1327.19,0.00016922,2]
[400496597,1767667837956,-1216.13,0.00016922,2]
[400496598,1767667837965,-605.61624021,0.00016924,2]
[400496599,1767667837974,-415.95432588,0.00016924,2]
[400496600,1767667837984,-500.0,0.00016924,2]
[400496601,1767667837993,-8515.92117165,0.00016925,2]
[400496602,1767667838003,-836.54,0.00016933,2]
[400496604,1767667838012,-150.0,0.00016955,2]
[400496606,1767667838022,-202.0,0.00016964,2]
[400496608,1767667838031,-158.04,0.00016971,2]
[400496610,1767667838040,-500.0,0.00016986,2]
[400496612,1767667838050,-51949.43,0.00016986,2]
[400496614,1767667838059,-250.0,0.00017,2]
[400496616,1767667838069,-150.0,0.00017013,2]
[400496618,1767667838078,-163.0,0.0001704,2]
[400496620,1767667838087,-150.0,0.00017071,2]
[400496622,1767667838097,-8515.92117165,0.00017088,2]
[400496624,1767667838106,-151.0,0.00017098,2]
[400496626,1767667838116,-151.0,0.00017098,2]
[400496628,1767667838125,-151.0,0.00017098,2]
[400496630,1767667838134,-199.19,0.00017098,2]
[400496632,1767667838145,-151.0,0.00017098,2]
[400496634,1767667838155,-151.0,0.00017098,2]
[400496636,1767667838164,-151.0,0.00017104,2]
[400496638,1767667838174,-151.0,0.00017104,2]
[400496640,1767667838183,-345.01,0.00017112,2]
[400496642,1767667838193,-500.0,0.00017112,2]
[400496644,1767667838202,-150.0,0.00017129,2]
[400496645,1767667838212,-971.36,0.00017141,2]
[400496648,1767667838222,-226.15,0.0001718,2]
[400496649,1767667838232,-150.0,0.00017187,2]
[400496651,1767667838249,-151.0,0.00017199,2]
[400496653,1767667838268,-151.0,0.00017199,2]
[400496655,1767667838279,-150.0,0.00017245,2]
[400496657,1767667838289,-166.66,0.00017248,2]
[400496659,1767667838299,-8515.92117165,0.0001725,2]
[400496661,1767667838309,-211.0,0.0001728,2]
[400496663,1767667838318,-150.0,0.00017303,2]
[400496665,1767667838328,-150.0,0.00017361,2]
[400496667,1767667838338,-345.01,0.00017386,2]
[400496668,1767667838348,-210.91209289,0.00017386,2]
[400496669,1767667838358,-202.0,0.00017397,2]
[400496670,1767667838367,-1000.0,0.00017412,2]
[400496671,1767667838376,-8515.92117165,0.00017413,2]
[400496672,1767667838385,-150.0,0.00017419,2]
[400496673,1767667838395,-211.0,0.00017453,2]
[400496674,1767667838405,-1334.0,0.00017461,2]
[400496675,1767667838416,-150.0,0.00017477,2]
[400496676,1767667838425,-202.0,0.00017497,2]
[400496677,1767667838435,-33569.5495,0.00017512,2]
[400496678,1767667838445,-150.0,0.00017535,2]
[400496679,1767667838455,-500.0,0.00017573,2]
[400496680,1767667838464,-500.0,0.00017573,2]
[400496681,1767667838476,-503.52117386,0.00017573,2]
[400496682,1767667838486,-500.0,0.00017573,2]
[400496683,1767667838495,-500.0,0.00017573,2]
[400496684,1767667838506,-350.48753114,0.00017573,2]
[400496685,1767667838515,-8515.92117165,0.00017575,2]
[400496686,1767667838525,-202.0,0.00017586,2]
[400496687,1767667838535,-150.0,0.00017594,2]
[400496688,1767667838545,-323.7,0.00017627,2]
[400496689,1767667838554,-202.0,0.00017629,2]
[400496690,1767667838564,-5425.18816308,0.0001764,2]
[400496691,1767667838573,-150.0,0.00017652,2]
[400496692,1767667838583,-345.01,0.0001766,2]
[400496693,1767667838593,-1334.0,0.00017692,2]
[400496694,1767667838602,-4555.0777368,0.000177,2]
[400496695,1767667838611,-150.0,0.0001771,2]
[400496696,1767667838622,-935.0,0.00017712,2]
[400496697,1767667838631,-300.0,0.00017734,2]
[400496698,1767667838641,-255.19351802,0.00017737,2]
[400496699,1767667838650,-256.50634122,0.00017737,2]
[400496700,1767667838659,-293.56367081,0.00017737,2]
[400496701,1767667838669,-500.0,0.00017737,2]
[400496702,1767667838679,-250.92999657,0.00017737,2]
[400496703,1767667838688,-8515.92117165,0.00017738,2]
[400496704,1767667838698,-300.0,0.00017739,2]
[400496705,1767667838707,-150.0,0.00017743,2]
[400496706,1767667838717,-300.0,0.00017744,2]
[400496707,1767667838727,-300.0,0.00017748,2]
[400496708,1767667838736,-300.0,0.00017749,2]
[400496709,1767667838750,-300.0,0.00017753,2]
[400496710,1767667838760,-300.0,0.00017755,2]
[400496711,1767667838770,-300.0,0.00017758,2]
[400496712,1767667838780,-300.0,0.00017758,2]
[400496713,1767667838790,-300.0,0.00017761,2]
[400496714,1767667838799,-300.0,0.00017764,2]
[400496715,1767667838809,-300.0,0.00017767,2]
[400496716,1767667838819,-150.0,0.00017768,2]
[400496717,1767667838829,-300.0,0.00017775,2]
[400496718,1767667838840,-300.0,0.00017777,2]
[400496719,1767667838849,-165.70481798,0.00017788,2]
[400496720,1767667838859,-300.0,0.00017792,2]
[400496721,1767667838869,-300.0,0.00017799,2]
[400496722,1767667838879,-413.72073512,0.000178,2]
[400496723,1767667838890,-300.0,0.00017802,2]
[400496724,1767667838899,-300.0,0.00017805,2]
[400496725,1767667838909,-300.0,0.00017806,2]
[400496726,1767667838919,-300.0,0.0001781,2]
[400496727,1767667838928,-300.0,0.00017812,2]
[400496728,1767667838938,-300.0,0.00017816,2]
[400496729,1767667838947,-344.16553,0.0001782,2]
[400496730,1767667838957,-344.16553,0.0001782,2]
[400496731,1767667838968,-300.0,0.00017824,2]
[400496732,1767667838977,-150.0,0.00017826,2]
[400496733,1767667838987,-749.4662188,0.0001783,2]
[400496734,1767667838997,-344.16553,0.0001783,2]
[400496735,1767667839007,-300.0,0.00017831,2]
[400496736,1767667839018,-300.0,0.00017832,2]
[400496737,1767667839028,-300.0,0.00017832,2]
[400496738,1767667839038,-300.0,0.00017833,2]
[400496739,1767667839047,-300.0,0.00017836,2]
[400496740,1767667839057,-5402.0,0.0001784,2]
[400496741,1767667839066,-150.0,0.00017841,2]
[400496742,1767667839075,-300.0,0.00017841,2]
[400496743,1767667839084,-300.0,0.00017843,2]
[400496744,1767667839093,-300.0,0.00017846,2]